[Event "3rd ESNAI-ch 2018"]
[Site "Klaksvik"]
[Date "2018.04.14"]
[Round "1"]
[White "Efimov, Igor"]
[Black "Kirby, Peter J"]
[Result "1-0"]
[ECO "A48"]
[WhiteElo "2407"]
[BlackElo "1985"]
[Annotator "NA"]
[PlyCount "57"]
[EventDate "2018.??.??"]
[EventType "tourn"]
[EventCountry "FAI"]
[SourceTitle "playchess.com"]
[Source "ChessBase"]
[SourceQuality "1"]
[TimeControl "40/5400+30:1800+30"]

{[%evp 19,50,39,43,32767,48,33,32767,32767,32767,32767,55,55,32767,32767,187,154,163,143,150,143,192,187,32767,32767,207,189,193,185,192,197,192,32767,248]} 1. d4 {[%emt 0:00:00]} Nf6 {[%emt 0:00:05]} 2. Nf3 {[%emt 0:00:02]} g6 {[%emt 0:00:07]} 3. c4 {[%emt 0:01:36]} Bg7 {[%emt 0:00:07]} 4. Nc3 {[%emt 0:00:09]} O-O {[%emt 0:00:13]} 5. Bg5 {[%emt 0:00:16]} h6 {[%emt 0:02:50]} 6. Bh4 {[%emt 0:02:20]} d6 {[%emt 0:03:02]} 7. e3 {[%emt 0:03:45]} b6 {[%emt 0:00:56] E61: King's Indian: Early deviations for White, including Smyslov System} (7... c6 8. Be2 a6 9. Qc2 b5 10. a3 Nbd7 11. O-O Bb7 12. Rfd1 bxc4 13. Bxc4 g5 14. Bg3 Nh5 15. Ba2 Rb8 16. Ne4 Ndf6 17. Nxf6+ exf6 {1-0 (47) Kempinski,R (2586)-Dziuba,M (2556) Poland 2017}) 8. Be2 {[%emt 0:01:22]} Bb7 {[%emt 0:00:22]} 9. Qc2 {[%emt 0:00:09]} Nbd7 {[%emt 0:03:29]} 10. O-O {[%emt 0:00:55]} a5 {[%emt 0:06:04]} 11. Rfd1 {[%emt 0:00:29]} Qc8 $146 {[%emt 0:03:18]} ({Predecessor:} 11... Re8 12. Rac1 e5 13. d5 Nc5 14. e4 Bc8 15. Nd2 Rf8 16. f3 {0-1 (50) Daut,M (1436)-Dinger,F (1622) Ludwigsburg 2002}) 12. d5 {[%emt 0:08:08]} c6 {[%emt 0:03:29]} 13. Rac1 {[%emt 0:06:47]} Re8 {[%emt 0:13:03]} 14. h3 {[%emt 0:04:08] Nc} Nc5 {[%emt 0:05:04]} 15. b3 {[%emt 0:03:49]} Qf5 {[%emt 0:09:38]} 16. Qxf5 {[%emt 0:03:06]} gxf5 {[%emt 0:00:45]} 17. Nd4 {[%emt 0:00:52]} cxd5 {[%emt 0:00:57]} 18. Nxf5 {[%emt 0:00:11]} dxc4 {[%emt 0:04:50]} 19. Bxc4 {[%emt 0:00:59]} Bc8 {[%emt 0:08:40]} (19... Kf8 $16 20. f3 Rec8) 20. Nxg7 {[%emt 0:02:03]} Kxg7 {[%emt 0:00:03]} 21. Bxf6+ {[%emt 0:00:09]} exf6 {[%emt 0:01:38]} 22. Rxd6 {[%emt 0:00:07]} Rb8 {[%emt 0:00:43]} 23. Bb5 {[%emt 0:04:12]} Re6 {[%emt 0:02:29]} 24. Rd8 {[%emt 0:00:52]} Nb7 {[%emt 0:00:58]} 25. Rd4 {[%emt 0:02:08]} Nd6 $18 {[%emt 0:04:45]} (25... Rd6 $142 26. Ne2 Rxd4 27. Nxd4 Nd6) 26. Be2 {[%emt 0:03:02]} f5 {[%emt 0:02:42]} 27. Nd5 {[%emt 0:01:58]} Ne4 {[%emt 0:04:54]} 28. Nc7 {[%emt 0:07:55]} Rd6 {[%emt 0:01:09]} 29. Ne8+ {[%emt 0:00:10]} 1-0

[Event "3rd ESNAI-ch 2018"]
[Site "Klaksvik"]
[Date "2018.04.14"]
[Round "1"]
[White "Klerides, Paris"]
[Black "Theocharous, Stelios"]
[Result "1-0"]
[ECO "B33"]
[WhiteElo "2183"]
[BlackElo "2099"]
[Annotator "NA"]
[PlyCount "83"]
[EventDate "2018.??.??"]
[EventType "tourn"]
[EventCountry "FAI"]
[SourceTitle "playchess.com"]
[Source "ChessBase"]
[SourceQuality "1"]
[TimeControl "40/5400+30:1800+30"]

1. e4 {[%emt 0:00:00]} c5 {[%emt 0:00:12]} 2. Nf3 {[%emt 0:00:00]} Nc6 {[%emt 0:00:05]} 3. d4 {[%emt 0:00:00]} cxd4 {[%emt 0:00:06]} 4. Nxd4 {[%emt 0:00:00]} Nf6 {[%emt 0:00:04]} 5. Nc3 {[%emt 0:00:00]} e5 {[%emt 0:00:06]} 6. Ndb5 {[%emt 0:00:10]} d6 {[%emt 0:00:06]} 7. Bg5 {[%emt 0:00:11]} a6 {[%emt 0:00:05]} 8. Na3 {[%emt 0:00:07]} b5 {[%emt 0:00:06]} 9. Nd5 {[%emt 0:00:43]} Be7 {[%emt 0:00:11]} 10. Bxf6 {[%emt 0:00:10]} Bxf6 {[%emt 0:00:05]} 11. c3 {[%emt 0:00:17]} O-O {[%emt 0:00:13]} 12. Nc2 {[%emt 0:00:32]} Bg5 {[%emt 0:00:07]} 13. h4 {[%emt 0:00:36]} Bh6 {[%emt 0:00:58]} 14. g4 {[%emt 0:00:45]} Bf4 {[%emt 0:18:18]} 15. Qf3 {[%emt 0:00:36]} h5 {[%emt 0:02:51] B33: Sicilian: Pelikan and Sveshnikov Variations} (15... Be6 16. Nxf4 exf4 17. Qxf4 Ne5 18. g5 Re8 19. O-O-O Bxa2 20. h5 b4 21. Nxb4 Bb3 22. Nc2 Qa5 23. g6 hxg6 {½-½ (49) Haugen,A (2536)-Dronov,A (2595) ICCF email 2006}) 16. gxh5 {[%emt 0:09:46]} f5 $146 {[%emt 0:05:08]} ({Predecessor:} 16... Bh6 17. Nce3 Ne7 18. Bh3 Nxd5 19. Nxd5 Be6 20. Ne3 Rc8 21. Rg1 Qxh4 22. Nf5 Bxf5 23. Bxf5 {0-1 (33) Kosztolanczi,G (2185)-Kaman,A (2185) Hungary 1995}) 17. Nxf4 {[%emt 0:30:00]} exf4 {[%emt 0:02:39]} 18. O-O-O {[%emt 0:08:15]} Ne5 {[%emt 0:16:38]} 19. Qxf4 $16 {[%emt 0:03:51]} Bb7 {[%emt 0:01:46]} 20. h6 {[%emt 0:17:00]} fxe4 {[%emt 0:12:31]} 21. Qg3 {[%emt 0:00:17]} Rf7 {[%emt 0:00:53]} 22. Ne3 {[%emt 0:16:13]} Qf6 {[%emt 0:02:50]} 23. hxg7 {[%emt 0:03:58]} Rxg7 {[%emt 0:00:10]} 24. Qh2 {[%emt 0:00:05]} Rd8 {[%emt 0:12:24]} 25. Rg1 {[%emt 0:02:43]} Kh8 {[%emt 0:04:48]} 26. Rxg7 {[%emt 0:01:25]} Qxg7 {[%emt 0:00:03]} 27. Be2 {[%emt 0:00:52]} Qf6 {[%emt 0:08:32]} 28. Rg1 {[%emt 0:02:17]} b4 {[%emt 0:05:14]} 29. Rg5 {[%emt 0:01:01]} bxc3 {[%emt 0:02:55]} 30. Rh5+ {[%emt 0:01:46]} Kg7 {[%emt 0:00:55]} 31. Qg3+ {[%emt 0:00:02]} Ng6 {[%emt 0:01:01]} 32. Nf5+ {[%emt 0:00:47]} Kf8 {[%emt 0:00:37]} 33. Ne3 {[%emt 0:00:41]} cxb2+ {[%emt 0:00:28]} 34. Kb1 {[%emt 0:00:01]} Rc8 {[%emt 0:02:03]} 35. Bc4 {[%emt 0:00:36]} Qc3 {[%emt 0:01:55]} 36. Qxd6+ {[%emt 0:00:29]} Ne7 {[%emt 0:00:54]} 37. Rf5+ {[%emt 0:00:45]} Ke8 {[%emt 0:00:20]} 38. Bf7+ {[%emt 0:00:31]} Kf8 {[%emt 0:00:14]} 39. Bh5+ {[%emt 0:00:10]} Kg8 {[%emt 0:00:35]} 40. Qe6+ {[%emt 0:00:00]} Kh8 {[%emt 0:00:48]} 41. Qh6+ {[%emt 0:02:20]} Kg8 {[%emt 0:00:10]} 42. Bf7# {[%emt 0:00:17]} 1-0

[Event "3rd ESNAI-ch 2018"]
[Site "Klaksvik"]
[Date "2018.04.16"]
[Round "3"]
[White "Kirby, Peter J"]
[Black "Theocharous, Stelios"]
[Result "1-0"]
[ECO "E05"]
[WhiteElo "1985"]
[BlackElo "2099"]
[Annotator "NA RC"]
[PlyCount "68"]
[EventDate "2018.??.??"]
[EventType "tourn"]
[EventCountry "FAI"]
[SourceTitle "playchess.com"]
[Source "ChessBase"]
[SourceQuality "1"]
[TimeControl "40/5400+30:1800+30"]

1. d4 {[%emt 0:00:00]} Nf6 {[%emt 0:00:17]} 2. c4 {[%emt 0:00:00]} e6 {[%emt 0:00:04]} 3. g3 {[%emt 0:00:00]} d5 {[%emt 0:04:48]} 4. Nf3 {[%emt 0:00:00]} dxc4 {[%emt 0:09:47]} 5. Bg2 {[%emt 0:00:04]} Be7 {[%emt 0:20:09]} 6. Ne5 {[%emt 0:03:05]} O-O {[%emt 0:03:46]} 7. O-O {[%emt 0:01:42]} c5 {[%emt 0:04:59]} 8. dxc5 {[%emt 0:01:43]} Bxc5 {[%emt 0:00:12]} 9. Nxc4 $14 {[%emt 0:01:40]} Nc6 {[%emt 0:04:57]} 10. Nbd2 {[%emt 0:07:27]} Bd7 {[%emt 0:03:50]} 11. Nb3 {[%emt 0:00:49]} Be7 {[%emt 0:07:13]} 12. Be3 {[%emt 0:02:12]} b5 {[%emt 0:09:02]} 13. Nd6 {[%emt 0:04:16]} Nd5 {[%emt 0:00:12]} 14. Bc5 {[%emt 0:07:05]} Na5 {[%emt 0:19:19]} 15. Nxa5 {[%emt 0:11:46]} Qxa5 {[%emt 0:00:12]} 16. Nb7 {[%emt 0:00:13]} Qc7 {[%emt 0:01:31]} 17. Bxe7 {[%emt 0:00:06]} Nxe7 {[%emt 0:00:19]} 18. Rc1 {[%emt 0:04:04]} Bc6 {[%emt 0:02:05]} 19. Bxc6 {[%emt 0:05:33]} Nxc6 {[%emt 0:00:07]} 20. Qd6 {[%emt 0:02:33]} Qxd6 {[%emt 0:02:30]} 21. Nxd6 {[%emt 0:00:02]} Nd4 {[%emt 0:01:01]} 22. Rfe1 {[%emt 0:01:59]} Rfd8 {[%emt 0:00:55]} 23. Ne4 {[%emt 0:00:47]} Rac8 {[%emt 0:00:41]} 24. Kf1 {[%emt 0:01:36]} Kf8 {[%emt 0:01:48]} 25. Red1 {[%emt 0:00:43]} e5 {[%emt 0:02:07]} 26. h3 {[%emt 0:01:41]} f5 {[%emt 0:00:33]} 27. Nc5 {[%emt 0:02:00]} Ke7 {[%emt 0:00:40]} 28. b4 {[%emt 0:04:07]} Nc6 {[%emt 0:00:35]} 29. a3 {[%emt 0:01:18]} Nd4 {[%emt 0:00:38]} 30. e3 {[%emt 0:04:48]} Nc6 {[%emt 0:00:34]} 31. Ke2 {[%emt 0:01:43]} e4 {[%emt 0:00:30]} 32. Rxd8 {[%emt 0:01:35]} Rxd8 {[%emt 0:00:05]} 33. Nxe4 {[%emt 0:03:43]} Nxb4 {[%emt 0:00:58]} 34. Rc7+ {[%emt 0:00:13]} Ke6 1-0

[Event "3rd ESNAI-ch 2018"]
[Site "Klaksvik"]
[Date "2018.04.17"]
[Round "4"]
[White "Frick, Renato"]
[Black "Kirby, Peter J"]
[Result "1/2-1/2"]
[ECO "B34"]
[WhiteElo "2062"]
[BlackElo "1985"]
[Annotator "NA"]
[PlyCount "60"]
[EventDate "2018.??.??"]
[EventType "tourn"]
[EventCountry "FAI"]
[SourceTitle "playchess.com"]
[Source "ChessBase"]
[SourceQuality "1"]
[TimeControl "40/5400+30:1800+30"]

1. e4 {[%emt 0:00:00]} c5 {[%emt 0:00:03]} 2. Nf3 {[%emt 0:00:00]} Nc6 {[%emt 0:00:04]} 3. Nc3 {[%emt 0:00:00]} g6 {[%emt 0:00:09]} 4. d4 {[%emt 0:00:43]} cxd4 {[%emt 0:00:05]} 5. Nxd4 {[%emt 0:00:02]} Bg7 {[%emt 0:00:09]} 6. Be3 {[%emt 0:00:21]} Nf6 {[%emt 0:00:33]} 7. Be2 $11 {[%emt 0:06:25] LiveBook: 506 Games} O-O 8. Qd2 d5 9. Nxc6 bxc6 10. O-O-O Be6 11. exd5 Nxd5 12. Bd4 Bxd4 13. Qxd4 Nxc3 14. Qxc3 Qb6 15. Qe3 Qxe3+ 16. fxe3 Bd5 17. Bf3 Rfd8 18. b3 Kf8 {[%emt 0:33:58]} 19. e4 Be6 20. g4 {[%emt 1:17:11]} Ke8 {[%emt 0:04:23]} 21. h4 {[%emt 0:03:38]} Rxd1+ {[%emt 0:01:12]} 22. Kxd1 {[%emt 0:02:10]} Rd8+ {[%emt 0:02:50]} 23. Ke2 {[%emt 0:06:54]} h6 {[%emt 0:01:14]} 24. Ke3 {[%emt 0:00:23]} c5 {[%emt 0:03:53]} 25. Be2 {[%emt 0:07:21]} Kd7 {[%emt 0:02:29]} 26. g5 {[%emt 0:00:21]} Rh8 {[%emt 0:03:24]} 27. Kf4 {[%emt 0:01:03]} hxg5+ {[%emt 0:01:03]} 28. Kxg5 {[%emt 0:00:02]} Kd6 {[%emt 0:01:34]} 29. Kf4 {[%emt 0:00:21]} f6 {[%emt 0:01:27]} 30. Rd1+ {[%emt 0:00:27]} Kc7 {[%emt 0:01:58]} 1/2-1/2

[Event "3rd ESNAI-ch 2018"]
[Site "Klaksvik"]
[Date "2018.04.18"]
[Round "5"]
[White "Efimov, Igor"]
[Black "Berg, Olaf"]
[Result "0-1"]
[ECO "D04"]
[WhiteElo "2407"]
[BlackElo "2235"]
[Annotator "NA"]
[PlyCount "62"]
[EventDate "2018.??.??"]
[EventType "tourn"]
[EventCountry "FAI"]
[SourceTitle "playchess.com"]
[Source "ChessBase"]
[SourceQuality "1"]
[TimeControl "40/5400+30:1800+30"]

1. Nf3 {[%emt 0:00:00]} Nf6 {[%emt 0:00:24]} 2. d4 {[%emt 0:00:12]} d5 {[%emt 0:00:47]} 3. e3 {[%emt 0:00:55]} g6 {[%emt 0:01:59]} 4. c4 {[%emt 0:00:22]} c6 {[%emt 0:00:30]} 5. Nc3 {[%emt 0:00:19]} Bg7 {[%emt 0:00:18]} 6. Bd2 {[%emt 0:03:13]} O-O {[%emt 0:01:08]} 7. Rc1 {[%emt 0:00:33]} a6 {[%emt 0:11:12]} 8. cxd5 {[%emt 0:18:58]} cxd5 {[%emt 0:02:23]} 9. Ne5 {[%emt 0:00:35]} Nbd7 {[%emt 0:08:56]} 10. Nd3 {[%emt 0:01:56]} Re8 {[%emt 0:08:46]} 11. f4 $11 {[%emt 0:07:04]} Nb6 {[%emt 0:06:18]} 12. Be2 {[%emt 0:03:30]} Nc4 {[%emt 0:04:03]} 13. O-O {[%emt 0:00:32]} e6 {[%emt 0:12:20]} 14. Rc2 {[%emt 0:02:01]} Nxd2 {[%emt 0:10:55]} 15. Qxd2 {[%emt 0:00:21]} Qd6 {[%emt 0:06:57]} 16. Rfc1 {[%emt 0:11:51]} Bd7 {[%emt 0:01:04]} 17. Nc5 {[%emt 0:01:11]} Bc6 {[%emt 0:02:07]} 18. b4 {[%emt 0:04:01]} Nd7 {[%emt 0:02:32]} 19. b5 {[%emt 0:00:48]} axb5 {[%emt 0:02:27]} 20. Nxb5 {[%emt 0:01:20]} Qe7 {[%emt 0:02:11]} 21. Nb3 {[%emt 0:17:21]} Nf6 {[%emt 0:03:59]} 22. Bd3 {[%emt 0:06:58]} Red8 {[%emt 0:01:46]} 23. Na5 {[%emt 0:02:21]} Bxb5 {[%emt 0:00:49]} 24. Bxb5 {[%emt 0:00:01]} Ne4 {[%emt 0:00:17]} 25. Qe1 {[%emt 0:00:02]} Qa3 {[%emt 0:03:33]} 26. Nxb7 {[%emt 0:05:35]} Rdb8 {[%emt 0:00:05]} 27. Bc6 {[%emt 0:00:05]} Ra6 {[%emt 0:00:52]} 28. Rb1 {[%emt 0:01:01]} Qd3 {[%emt 0:02:21]} 29. Nc5 {[%emt 0:00:37]} Qxe3+ {[%emt 0:01:00]} 30. Qxe3 {[%emt 0:01:24]} Rxb1+ {[%emt 0:00:05]} 31. Rc1 {[%emt 0:00:08]} Bxd4 {[%emt 0:00:13]} 0-1

[Event "3rd ESNAI-ch 2018"]
[Site "Klaksvik"]
[Date "2018.04.18"]
[Round "5"]
[White "Klerides, Paris"]
[Black "Belzo, Krzysztof"]
[Result "1-0"]
[ECO "B35"]
[WhiteElo "2183"]
[BlackElo "2103"]
[Annotator "NA"]
[PlyCount "57"]
[EventDate "2018.??.??"]
[EventType "tourn"]
[EventCountry "FAI"]
[SourceTitle "playchess.com"]
[Source "ChessBase"]
[SourceQuality "1"]
[TimeControl "40/5400+30:1800+30"]

1. e4 {[%emt 0:00:00]} c5 {[%emt 0:00:14]} 2. Nf3 {[%emt 0:00:00]} g6 {[%emt 0:00:56]} 3. d4 {[%emt 0:00:00]} cxd4 {[%emt 0:00:28]} 4. Nxd4 {[%emt 0:00:00]} Bg7 {[%emt 0:00:05]} 5. Nc3 {[%emt 0:00:30]} Nc6 {[%emt 0:00:13]} 6. Be3 {[%emt 0:00:08]} Nf6 {[%emt 0:00:47]} 7. Bc4 {[%emt 0:00:16]} O-O {[%emt 0:02:05]} 8. Bb3 {[%emt 0:00:13]} d6 {[%emt 0:00:22]} 9. f3 {[%emt 0:00:21]} Bd7 {[%emt 0:00:43]} 10. Qd2 {[%emt 0:00:15]} Nxd4 {[%emt 0:04:15]} 11. Bxd4 {[%emt 0:00:41]} b5 {[%emt 0:00:03]} 12. h4 {[%emt 0:01:13]} h5 {[%emt 0:31:22]} 13. g4 {[%emt 0:18:48]} e5 {[%emt 0:05:57]} 14. Be3 $16 {[%emt 0:03:09]} Be6 {[%emt 0:07:50]} 15. gxh5 {[%emt 0:05:38]} Nxh5 {[%emt 0:02:45]} 16. O-O-O {[%emt 0:01:07]} Bxb3 {[%emt 0:08:49]} 17. cxb3 {[%emt 0:02:15]} b4 {[%emt 0:10:06]} 18. Nd5 {[%emt 0:01:14]} a5 {[%emt 0:11:16]} 19. Kb1 {[%emt 0:07:24]} Ra6 {[%emt 0:00:32]} 20. Rc1 {[%emt 0:02:22]} Ra8 {[%emt 0:04:10]} 21. Bb6 {[%emt 0:10:32]} Qd7 {[%emt 0:00:58]} 22. Rc7 {[%emt 0:01:24]} Qb5 {[%emt 0:00:01]} 23. Be3 {[%emt 0:06:17]} Kh7 {[%emt 0:00:44]} 24. Nb6 {[%emt 0:10:37]} Rab8 {[%emt 0:03:22]} 25. Nc4 {[%emt 0:01:51]} Rbd8 {[%emt 0:01:03]} 26. Ra7 {[%emt 0:04:08]} d5 {[%emt 0:01:05]} 27. Rxa5 {[%emt 0:01:28]} dxc4 {[%emt 0:00:22]} 28. Rxb5 {[%emt 0:00:05]} Rxd2 {[%emt 0:00:03]} 29. Bxd2 {[%emt 0:00:19]} 1-0

[Event "3rd ESNAI-ch 2018"]
[Site "Klaksvik"]
[Date "2018.04.18"]
[Round "5"]
[White "Theocharous, Stelios"]
[Black "Frick, Renato"]
[Result "1-0"]
[ECO "B47"]
[WhiteElo "2099"]
[BlackElo "2062"]
[Annotator "NA"]
[PlyCount "91"]
[EventDate "2018.??.??"]
[EventType "tourn"]
[EventCountry "FAI"]
[SourceTitle "playchess.com"]
[Source "ChessBase"]
[SourceQuality "1"]
[TimeControl "40/5400+30:1800+30"]

1. e4 {[%emt 0:00:00]} c5 {[%emt 0:02:13]} 2. Nf3 {[%emt 0:00:00]} e6 {[%emt 0:00:13]} 3. d4 {[%emt 0:00:00]} cxd4 {[%emt 0:00:06]} 4. Nxd4 {[%emt 0:00:00]} Nc6 {[%emt 0:00:08]} 5. Nc3 {[%emt 0:00:27]} Qc7 {[%emt 0:00:12]} 6. g3 {[%emt 0:01:28]} a6 {[%emt 0:03:00]} 7. Bg2 {[%emt 0:00:10]} Nf6 {[%emt 0:01:28]} 8. O-O {[%emt 0:00:38]} Be7 {[%emt 0:03:25]} 9. Re1 {[%emt 0:05:50]} d6 {[%emt 0:01:45]} 10. Nxc6 {[%emt 0:00:32]} bxc6 {[%emt 0:00:06]} 11. e5 {[%emt 0:00:12]} dxe5 {[%emt 0:10:16]} 12. Rxe5 {[%emt 0:00:08]} O-O {[%emt 0:00:19]} 13. Re1 {[%emt 0:03:39]} Bb7 {[%emt 0:02:12] LiveBook: 7 Games} 14. Bf4 $14 {[%emt 0:10:14]} Qa5 {[%emt 0:01:05]} 15. Be5 {[%emt 0:28:22]} Rad8 {[%emt 0:08:42]} 16. Qe2 {[%emt 0:01:32]} Rd7 {[%emt 0:03:14]} 17. Rad1 {[%emt 0:04:35]} Rfd8 {[%emt 0:05:24]} 18. Rxd7 {[%emt 0:07:39]} Rxd7 {[%emt 0:02:11]} 19. Qc4 {[%emt 0:04:12]} Nd5 {[%emt 0:20:59]} 20. Qg4 {[%emt 0:14:00]} Bf8 {[%emt 0:00:28]} 21. Rd1 {[%emt 0:01:39]} h5 {[%emt 0:24:18]} 22. Qxh5 {[%emt 0:05:10]} f6 {[%emt 0:04:03]} 23. Bh3 {[%emt 0:02:10]} f5 {[%emt 0:01:21]} 24. Qg6 {[%emt 0:03:47]} Nf4 {[%emt 0:00:19]} 25. gxf4 {[%emt 0:02:56]} Rxd1+ {[%emt 0:00:05]} 26. Nxd1 {[%emt 0:00:05]} Qe1+ {[%emt 0:00:11]} 27. Bf1 {[%emt 0:01:02]} Qxd1 {[%emt 0:00:11]} 28. Qxe6+ {[%emt 0:00:06]} Kh8 {[%emt 0:00:17]} 29. Qxf5 {[%emt 0:02:03]} Kg8 {[%emt 0:00:37]} 30. Qe6+ {[%emt 0:00:36]} Kh8 {[%emt 0:00:06]} 31. Qh3+ {[%emt 0:00:14]} Kg8 {[%emt 0:00:08]} 32. Qg2 {[%emt 0:00:55]} Qxc2 {[%emt 0:00:57]} 33. b3 {[%emt 0:00:28]} Qc1 {[%emt 0:04:15]} 34. h3 {[%emt 0:00:31]} Bc8 {[%emt 0:00:09]} 35. Kh2 {[%emt 0:00:39]} Be6 {[%emt 0:00:36]} 36. Be2 {[%emt 0:00:49]} Qc2 {[%emt 0:00:41]} 37. Bf3 {[%emt 0:01:01]} Qxa2 {[%emt 0:00:14]} 38. Bxc6 {[%emt 0:00:34]} Qxb3 {[%emt 0:00:08]} 39. f5 {[%emt 0:00:21]} Bf7 {[%emt 0:00:38]} 40. f6 {[%emt 0:00:00]} Qe6 {[%emt 0:00:13]} 41. f4 {[%emt 0:16:13]} Qa2 {[%emt 0:06:37]} 42. Bb2 {[%emt 0:01:37]} g6 {[%emt 0:01:02]} 43. Be4 {[%emt 0:00:51]} Bd6 {[%emt 0:00:43]} 44. Bxg6 {[%emt 0:02:45]} Bxf4+ {[%emt 0:00:19]} 45. Kh1 {[%emt 0:00:14]} Qd5 {[%emt 0:14:02]} 46. Bxf7+ {[%emt 0:00:28]} 1-0

[Event "3rd ESNAI-ch 2018"]
[Site "Klaksvik"]
[Date "2018.04.19"]
[Round "6"]
[White "Berg, Olaf"]
[Black "Kirby, Peter J"]
[Result "1-0"]
[ECO "B26"]
[WhiteElo "2235"]
[BlackElo "1985"]
[Annotator "NA"]
[PlyCount "107"]
[EventDate "2018.??.??"]
[EventType "tourn"]
[EventCountry "FAI"]
[SourceTitle "playchess.com"]
[Source "ChessBase"]
[SourceQuality "1"]
[TimeControl "40/5400+30:1800+30"]

1. e4 {[%emt 0:00:57]} c5 {[%emt 0:00:03]} 2. Nc3 {[%emt 0:01:10]} Nc6 {[%emt 0:00:06]} 3. g3 {[%emt 0:01:07]} g6 {[%emt 0:00:11]} 4. Bg2 {[%emt 0:00:26]} Bg7 {[%emt 0:00:13]} 5. d3 {[%emt 0:01:12]} d6 {[%emt 0:00:47]} 6. Be3 {[%emt 0:02:31]} e5 {[%emt 0:00:18]} 7. Qd2 {[%emt 0:01:02]} Nge7 {[%emt 0:02:53]} 8. Bh6 {[%emt 0:03:50]} Bxh6 {[%emt 0:03:19]} 9. Qxh6 {[%emt 0:01:34]} Nd4 {[%emt 0:00:07]} 10. O-O-O {[%emt 0:05:12] B26: Closed Sicilian: 3 g3, lines with early Be3} b5 {[%emt 0:05:52]} 11. Qg7 {[%emt 0:03:32]} Rf8 {[%emt 0:00:16]} 12. Nf3 $146 {[%emt 0:20:01]} ({Predecessor:} 12. f4 b4 13. Nce2 Nxe2+ 14. Nxe2 Bg4 15. Rhe1 Nc6 16. h3 Bxe2 17. Rxe2 a5 {0-1 (37) Krapivin,A (2521)-Sjugirov,S (2444) Vladimir 2006}) 12... Nxf3 {[%emt 0:10:00]} 13. Bxf3 {[%emt 0:00:25]} b4 {[%emt 0:04:40]} 14. Nd5 {[%emt 0:01:26]} Nxd5 {[%emt 0:01:34]} 15. exd5 {[%emt 0:00:03]} Qa5 {[%emt 0:09:44]} 16. Rhe1 {[%emt 0:04:47]} f6 {[%emt 0:13:21]} 17. Qxh7 {[%emt 0:01:37]} Bf5 {[%emt 0:01:41]} 18. g4 {[%emt 0:11:40]} Bd7 {[%emt 0:01:14]} 19. Qxg6+ {[%emt 0:02:38]} Kd8 {[%emt 0:00:36] [#]} 20. Kb1 $1 {[%emt 0:01:57]} Rb8 {[%emt 0:02:41]} 21. Qh6 {[%emt 0:07:10]} (21. g5 $142) 21... Kc7 {[%emt 0:00:20]} 22. b3 {[%emt 0:01:54]} (22. Be4 $18 {is more deadly.}) 22... Rh8 {[%emt 0:02:28]} 23. Qd2 {[%emt 0:07:25]} Rb6 {[%emt 0:05:06]} 24. a4 {[%emt 0:03:24]} Bxa4 {[%emt 0:00:04]} 25. Kb2 {[%emt 0:00:07]} c4 {[%emt 0:02:42]} 26. dxc4 {[%emt 0:04:16]} Bd7 {[%emt 0:02:28]} 27. Ra1 {[%emt 0:00:36]} Qc5 {[%emt 0:00:02]} 28. Rxa7+ {[%emt 0:07:23]} Rb7 {[%emt 0:00:02]} 29. Rxb7+ $16 {[%emt 0:00:16]} Kxb7 {[%emt 0:00:01]} 30. Rh1 {[%emt 0:04:15]} Ra8 {[%emt 0:00:07]} 31. Qe3 {[%emt 0:00:09]} Qa5 {[%emt 0:00:23]} 32. Kc1 {[%emt 0:00:07]} Bxg4 {[%emt 0:02:32]} 33. Kd2 {[%emt 0:01:10]} Bxf3 {[%emt 0:01:59]} 34. Qxf3 {[%emt 0:00:03]} Qc5 {[%emt 0:00:41]} 35. Qe3 {[%emt 0:00:33]} Qc7 {[%emt 0:01:19]} 36. h4 {[%emt 0:01:01]} Qh7 {[%emt 0:00:41]} 37. c5 {[%emt 0:01:01]} Ra2 {[%emt 0:00:18]} 38. Rc1 {[%emt 0:00:30]} dxc5 {[%emt 0:01:09]} 39. Qxc5 {[%emt 0:00:22]} Qxh4 {[%emt 0:00:23]} 40. Qc6+ {[%emt 0:00:00]} Kb8 {[%emt 0:00:21]} 41. Qb6+ {[%emt 0:02:52]} Kc8 {[%emt 0:01:51]} 42. Qc5+ {[%emt 0:01:21]} Kd7 {[%emt 0:01:50]} 43. Qc6+ {[%emt 0:02:49]} Kd8 {[%emt 0:00:43]} 44. Qb6+ {[%emt 0:03:55]} Kc8 {[%emt 0:02:14]} 45. Rg1 {[%emt 0:05:06]} Qh6+ {[%emt 0:05:23]} 46. Qe3 {[%emt 0:00:52]} Qxe3+ {[%emt 0:02:55]} 47. fxe3 {[%emt 0:00:05]} Ra5 {[%emt 0:01:07]} 48. e4 {[%emt 0:00:35]} Kd7 {[%emt 0:01:32]} 49. Rg7+ {[%emt 0:01:00]} Kd6 {[%emt 0:01:40]} 50. Rf7 {[%emt 0:00:16]} Kc5 {[%emt 0:00:18]} 51. Rc7+ {[%emt 0:03:13]} Kb5 {[%emt 0:04:44]} 52. Rc6 {[%emt 0:02:37]} f5 {[%emt 0:00:06]} 53. exf5 {[%emt 0:00:39]} Ra8 {[%emt 0:00:23]} 54. Ke3 1-0